bitfinex/quotes_ETHUSD_20250220
["timestamp","ask_amount","ask_price","bid_price","bid_amount"]
[1740072641057,3.66032,2732.0,2731.6,0.85927342]
[1740072641357,3.0,2732.2,2731.6,0.85927342]
[1740072641560,4.48059,2732.3,2731.6,3.66085]
[1740072641761,3.66005,2732.2,2731.8,0.8056]
[1740072641967,3.66026,2732.1,2731.8,0.8056]
[1740072642256,0.8084,2732.5,2731.8,0.8056]
[1740072642424,3.65991,2732.4,2731.8,4.73512]
[1740072642629,3.65914,2732.9,2732.1,3.66017]
[1740072642630,3.65949,2732.7,2732.1,3.66017]
[1740072642857,3.65949,2732.7,2732.0,4.47392]
[1740072642858,3.65954,2732.6,2732.0,4.47392]
[1740072643046,3.65949,2732.7,2732.0,4.47392]
[1740072643251,3.65967,2732.5,2732.0,4.47392]
[1740072643427,3.65967,2732.5,2732.0,8.13414]
[1740072643764,3.65967,2732.5,2732.1,0.9221927]
[1740072644063,3.65952,2732.6,2732.1,0.9221927]
[1740072644443,3.65966,2732.5,2732.1,0.9221927]
[1740072645675,0.9464189,2733.2,2732.3,3.4527504]
[1740072645826,3.65902,2733.0,2732.4,4.44958]
[1740072646025,0.1506189,2733.2,2732.4,5.23981304]
[1740072646262,3.6594,2732.7,2732.4,1.58003304]
[1740072646465,7.31838,2732.9,2732.4,1.58003304]
[1740072646854,3.65926,2732.8,2732.4,1.58003304]
[1740072647561,3.65926,2732.8,2732.4,1.84903304]
[1740072647860,3.65939,2732.7,2732.4,1.0588]
[1740072648373,0.7935,2732.9,2732.1,1.64648507]
[1740072648374,3.65992,2732.3,2732.2,0.8129]
[1740072648864,0.7935,2732.9,2732.2,0.8129]
[1740072649168,3.65976,2732.5,2732.2,0.8129]
[1740072649755,3.65918,2732.9,2732.2,0.8129]
[1740072649951,3.6594,2732.7,2732.3,3.65982]
[1740072650155,3.65918,2732.9,2732.3,3.65982]
[1740072650156,3.65916,2732.9,2732.5,0.7969]
[1740072650359,3.1506189,2733.2,2732.5,0.7969]
[1740072650663,7.31869,2732.8,2732.5,0.7969]
[1740072650832,3.65908,2733.0,2732.5,0.7969]
[1740072651234,3.65907,2733.0,2732.5,0.7969]
[1740072651533,3.65932,2732.8,2732.5,0.7969]
[1740072652542,3.65948,2732.7,2732.5,0.7969]
[1740072652734,3.65951,2732.6,2732.5,0.7969]
[1740072653264,7.31914,2732.6,2732.2,0.7826]
[1740072653469,7.31914,2732.6,2732.2,2.03751028]
[1740072653656,3.65951,2732.6,2732.2,2.03751028]
[1740072653862,3.65951,2732.6,2732.2,5.69756028]
[1740072654665,3.65905,2733.0,2732.5,3.65956]
[1740072654869,3.65924,2732.9,2732.4,4.42115]
[1740072655079,3.65924,2732.9,2732.5,0.442115]
[1740072656538,3.65894,2733.1,2732.5,0.442115]
[1740072656755,3.65905,2733.0,2732.5,4.101755]
[1740072656956,3.65918,2732.9,2732.5,0.442115]
[1740072657167,3.65925,2732.8,2732.5,0.442115]
[1740072659175,3.65938,2732.7,2732.5,0.442115]
[1740072659378,3.65938,2732.7,2732.4,0.7615]
[1740072660682,3.65957,2732.6,2732.4,0.7615]
[1740072661576,3.65931,2732.8,2732.4,0.7615]
[1740072661780,3.65939,2732.7,2732.4,0.7615]
[1740072661982,3.65939,2732.7,2732.4,1.203648]
[1740072662849,3.65908,2733.0,2732.5,3.65956]
[1740072663174,3.65939,2732.7,2732.4,1.203648]
[1740072664478,3.65892,2733.1,2732.6,3.6595]
[1740072664666,7.31789,2733.1,2732.7,0.7791]
[1740072665196,3.65892,2733.1,2732.7,0.7791]
[1740072665493,3.65892,2733.1,2732.7,4.43841]
[1740072665652,0.1506189,2733.2,2732.7,1.588898]
[1740072665856,0.1506189,2733.2,2732.7,4.43839]
[1740072666053,0.1506189,2733.2,2733.0,0.8022]
[1740072667478,3.8093289,2733.2,2733.0,0.8022]
[1740072667662,3.65884,2733.1,2732.9,0.269]
[1740072667863,7.31776,2733.1,2732.9,0.269]
[1740072668091,3.65884,2733.1,2732.9,0.269]
[1740072668878,3.65898,2733.0,2732.9,0.269]
[1740072669694,3.65938,2732.7,2732.4,0.8241]
[1740072669992,3.65938,2732.7,2732.2,0.269]
[1740072669993,3.65952,2732.6,2732.2,0.8241]
[1740072670174,3.65975,2732.5,2732.2,0.8241]
[1740072670501,3.65926,2732.8,2732.3,3.65982]
[1740072670796,4.5809189,2733.2,2732.5,4.43628]
[1740072670980,3.8094089,2733.2,2732.6,3.65941]
[1740072671168,3.65884,2733.1,2732.5,8.0959]
[1740072671582,3.65884,2733.1,2732.6,3.65942]
[1740072671781,0.1506189,2733.2,2732.8,0.7601]
[1740072671962,0.1506189,2733.2,2732.8,1.202047]
[1740072672302,3.65893,2733.1,2732.8,0.441947]
[1740072672492,3.65893,2733.1,2732.7,0.269]
[1740072672995,3.65909,2733.0,2732.7,0.269]
[1740072673301,3.65893,2733.1,2732.7,0.269]
[1740072673666,3.65893,2733.1,2732.8,0.34107034]
[1740072674393,7.31789,2733.1,2732.8,0.34107034]
[1740072674585,3.65892,2733.1,2732.8,0.34107034]
[1740072674786,3.65892,2733.1,2732.7,0.269]
[1740072674987,3.65892,2733.1,2732.7,0.739421]
[1740072675185,3.65926,2732.8,2732.5,1.06251861]
[1740072675390,3.65926,2732.8,2732.5,1.33151861]
[1740072676019,3.65915,2732.9,2732.5,1.33151861]
[1740072676326,3.65908,2733.0,2732.5,5.52686983]
[1740072676468,3.8094389,2733.2,2732.6,3.65946]
[1740072676667,3.65898,2733.0,2732.6,3.65946]
[1740072676881,3.65898,2733.0,2732.6,0.17921039]
[1740072677374,3.65921,2732.9,2732.6,0.17921039]
[1740072677598,0.1506189,2733.2,2732.6,0.17921039]
[1740072677599,3.65938,2732.7,2732.6,0.17921039]
[1740072678371,3.65953,2732.6,2732.3,0.269]
[1740072678675,0.7837,2732.8,2732.2,8.49]
[1740072678881,3.65992,2732.3,2732.2,8.49]
[1740072679406,3.65992,2732.3,2732.2,8.40027334]
[1740072680087,4.43472,2732.3,2732.2,8.40027334]
[1740072680503,4.43472,2732.3,2732.2,8.221]
[1740072680694,3.65992,2732.3,2732.2,8.221]
[1740072680909,4.42576,2732.5,2732.2,8.221]
[1740072681071,3.65983,2732.4,2732.2,8.221]
[1740072681587,0.8024,2732.8,2732.3,0.8287]
[1740072681909,3.65965,2732.5,2732.3,0.8287]
[1740072682202,3.65951,2732.6,2732.3,0.8287]
[1740072682705,3.65971,2732.5,2732.3,0.8287]
[1740072682884,3.65973,2732.5,2732.0,0.8184]
[1740072683085,3.65992,2732.3,2732.0,0.8184]
[1740072683408,3.65973,2732.5,2732.0,2.18878768]
[1740072683604,3.65973,2732.5,2732.0,5.84906768]
[1740072683807,3.65973,2732.5,2732.1,0.0365979]
[1740072684015,3.65944,2732.7,2732.1,3.87584289]
[1740072684177,3.65952,2732.6,2732.1,3.87584289]
[1740072684378,3.65952,2732.6,2732.1,4.51096148]
[1740072684877,3.65952,2732.6,2732.2,0.7829]
[1740072685077,0.8295,2733.0,2732.2,0.7829]
[1740072685277,3.65959,2732.6,2732.2,0.7829]
[1740072685477,7.31921,2732.6,2732.2,0.7829]
[1740072685677,3.65968,2732.5,2732.2,0.7829]
[1740072685872,3.65973,2732.5,2732.2,0.7829]
[1740072686325,0.8295,2733.0,2732.2,0.7829]
[1740072686530,3.65987,2732.4,2732.2,0.7829]
[1740072687172,3.65985,2732.4,2732.2,0.7829]
[1740072687423,3.65962,2732.6,2732.2,0.7829]
[1740072687777,3.65979,2732.4,2732.2,0.7829]
[1740072688024,3.65962,2732.6,2732.2,0.7829]
[1740072688323,3.65973,2732.5,2732.2,0.7829]
[1740072688530,3.65981,2732.4,2732.2,0.7829]
[1740072689386,7.31915,2732.6,2732.2,0.7829]
[1740072689602,7.31915,2732.6,2732.2,4.44294]
[1740072689603,3.65953,2732.6,2732.2,4.44294]
[1740072689901,0.8295,2733.0,2732.2,4.44294]
[1740072689902,3.65908,2733.0,2732.5,3.65961]
[1740072690485,3.65908,2733.0,2732.5,3.65965]
[1740072690694,3.65908,2733.0,2732.6,3.65949]
[1740072691017,3.65901,2733.0,2732.6,3.65945]
[1740072691182,3.65917,2732.9,2732.4,4.44465]
[1740072691381,7.31811,2733.0,2732.5,4.104055]
[1740072691583,3.65914,2732.9,2732.5,4.104055]
[1740072691801,3.65914,2732.9,2732.5,0.444465]
[1740072692196,3.65901,2733.0,2732.6,0.17889613]
[1740072692399,3.65933,2732.8,2732.6,0.68569124]
[1740072692601,3.65933,2732.8,2732.6,0.17889613]
[1740072692805,3.65913,2732.9,2732.7,0.7799]
[1740072693338,3.65925,2732.8,2732.7,0.7799]
[1740072693547,3.65925,2732.8,2732.6,0.17889613]
[1740072693718,3.65899,2733.0,2732.5,0.7558]
[1740072693919,0.1506189,2733.2,2732.6,0.03659214]
[1740072694142,3.65887,2733.1,2732.7,3.65935]
[1740072694454,3.8093389,2733.2,2732.7,3.65935]
[1740072695451,3.65889,2733.1,2732.6,8.34375]
[1740072695656,3.65889,2733.1,2732.6,4.68424]
[1740072695952,0.1506189,2733.2,2732.7,4.24417656]
[1740072695953,7.4682189,2733.2,2732.7,4.24417656]
[1740072696125,3.65893,2733.1,2732.7,0.58480656]
[1740072696330,3.65904,2733.0,2732.6,1.0248]
[1740072696549,3.65893,2733.1,2732.6,4.68425]
[1740072696846,3.65899,2733.0,2732.6,4.68425]
[1740072698656,3.8093389,2733.2,2732.7,4.47242]
[1740072698952,3.8093389,2733.2,2732.8,0.840084]
[1740072699449,0.1506189,2733.2,2732.8,4.67796908]
[1740072699952,3.8093489,2733.2,2732.9,0.8288872]
[1740072700156,3.8093489,2733.2,2732.9,0.7923]
[1740072700338,3.8093489,2733.2,2733.0,0.54703491]
[1740072701349,3.65884,2733.1,2733.0,0.54703491]
[1740072701538,3.65906,2733.0,2732.8,0.269]
[1740072701855,3.65941,2732.7,2732.5,1.53096557]
[1740072702057,3.65971,2732.5,2732.1,0.269]
[1740072702362,3.65978,2732.4,2732.1,0.269]
[1740072702781,3.65992,2732.3,2732.1,0.269]
[1740072703090,3.65992,2732.3,2732.0,1.57839027]
[1740072703230,4.43862,2732.3,2731.7,4.49325]
[1740072703554,3.65992,2732.3,2731.8,0.269]
[1740072704692,3.65992,2732.3,2731.9,0.73802467]
[1740072704868,3.65992,2732.3,2731.7,0.8326]
[1740072705041,3.65992,2732.3,2731.8,0.269]
[1740072706431,4.469761,2732.3,2731.8,0.269]
[1740072706874,3.66037,2732.0,2731.8,0.269]
[1740072708228,3.66037,2732.0,2731.5,0.28629032]
[1740072708466,0.7993,2732.0,2731.5,0.28629032]
[1740072708634,3.66045,2731.9,2731.6,0.71618338]
[1740072709146,3.66045,2731.9,2731.7,0.17889149]
[1740072709347,3.66059,2731.8,2731.7,0.17889149]
[1740072710435,3.66059,2731.8,2731.4,0.72387876]
[1740072710637,3.66046,2731.9,2731.6,0.7728]
[1740072710836,3.66047,2731.9,2731.6,0.7728]
[1740072711340,7.32104,2731.9,2731.6,0.7728]
[1740072711536,3.66047,2731.9,2731.6,0.7728]
[1740072712444,3.66061,2731.8,2731.6,0.7728]
[1740072712651,0.831,2732.2,2731.6,0.7728]
[1740072712985,3.66057,2731.9,2731.6,0.7728]
[1740072713484,3.66061,2731.8,2731.6,0.7728]
[1740072713639,3.66046,2731.9,2731.6,0.7728]
[1740072714474,3.66058,2731.9,2731.6,0.7728]
[1740072715477,3.66061,2731.8,2731.6,0.7728]
[1740072716138,3.6604,2732.0,2731.6,0.7728]
[1740072716386,3.66053,2731.9,2731.6,0.7728]
[1740072717158,3.6604,2732.0,2731.6,0.7728]
[1740072717345,3.66059,2731.8,2731.6,0.7728]
[1740072718137,3.66059,2731.8,2731.4,1.49817876]
[1740072718439,3.6604,2732.0,2731.4,0.7743]
[1740072718684,0.815148,2732.0,2731.4,0.7743]
[1740072718888,3.66063,2731.8,2731.4,4.43542]
[1740072719449,3.66055,2731.9,2731.4,4.43542]
[1740072719856,3.66055,2731.9,2731.4,4.43534]
[1740072720052,3.6606,2731.8,2731.4,0.7743]
[1740072720260,7.32128,2731.8,2731.4,0.7743]
[1740072720442,3.6606,2731.8,2731.4,0.7743]
[1740072720643,0.03648828,2732.1,2731.4,0.7743]
[1740072720876,3.66065,2731.8,2731.4,0.7743]
[1740072721042,3.66046,2731.9,2731.4,0.7743]
[1740072721245,3.6607,2731.8,2731.4,0.7743]
[1740072722074,3.69725828,2731.7,2731.4,0.7743]
[1740072722278,3.66077,2731.7,2731.3,8.9593871]
[1740072722478,3.66099,2731.5,2731.3,8.221]
[1740072722884,3.66112,2731.4,2731.3,8.221]
[1740072723065,5.19587983,2731.4,2731.3,8.221]
[1740072724450,4.46002,2731.4,2731.3,8.221]
[1740072726049,4.46002,2731.4,2731.1,0.0488]
[1740072726986,3.66126,2731.3,2731.1,0.0488]
[1740072728603,4.46004,2731.4,2731.1,0.0488]
[1740072728906,3.66132,2731.3,2731.1,0.0488]
[1740072729185,4.46004,2731.4,2731.1,0.0488]
[1740072729186,3.66139,2731.2,2731.1,0.0488]
[1740072729351,7.9215404,2731.2,2731.1,0.0488]
[1740072729782,4.46879,2731.2,2731.1,0.0488]
[1740072730463,8.01879,2731.2,2731.1,0.0488]
[1740072730679,8.02629,2731.2,2731.1,0.0488]
[1740072730874,9.88559508,2731.2,2731.1,0.0488]
[1740072731399,3.6627,2730.3,2730.0,1.5629853]
[1740072731566,4.4142,2730.5,2730.0,1.5629853]
[1740072731762,8.07666,2730.5,2730.0,1.5629853]
[1740072731973,3.66248,2730.4,2730.0,1.5629853]
[1740072732182,3.66284,2730.2,2729.4,0.69960179]
[1740072732356,3.6627,2730.3,2729.7,3.66328]
[1740072732557,7.32542,2730.3,2729.8,0.815103]
[1740072732894,3.66273,2730.2,2729.7,3.66328]
[1740072733191,7.32542,2730.3,2729.7,3.66328]
[1740072733385,3.66292,2730.1,2729.8,0.17906133]
[1740072733611,7.32591,2730.1,2729.8,0.17906133]
[1740072733966,3.66292,2730.1,2729.8,0.17906133]
[1740072734966,3.66292,2730.1,2729.7,0.71854442]
[1740072735667,7.32536,2730.3,2729.7,4.38194442]
[1740072735962,3.66274,2730.2,2729.8,3.66319]
[1740072736163,3.66266,2730.3,2729.7,1.25120786]
[1740072736513,3.66273,2730.2,2729.7,1.25120786]
[1740072736810,3.66273,2730.2,2729.7,4.91459786]
[1740072737365,3.66266,2730.3,2729.7,4.91459786]
[1740072737614,3.66266,2730.3,2729.7,4.38193442]
[1740072737913,3.6628,2730.2,2729.7,4.38193442]
[1740072738315,3.66266,2730.3,2729.7,4.38193442]
[1740072738495,3.66266,2730.3,2729.8,3.66326]
[1740072738828,0.7518,2730.6,2729.8,0.03662974]
[1740072738969,3.66216,2730.7,2730.2,3.6627]
[1740072739309,3.66217,2730.7,2730.1,3.66273]
[1740072739600,4.46199,2730.8,2730.1,3.66273]
[1740072739964,3.66222,2730.6,2730.1,3.66273]
[1740072740464,0.8,2730.8,2730.1,3.66273]
[1740072740713,3.66227,2730.6,2730.1,3.66273]
[1740072741671,3.66213,2730.7,2730.2,3.66265]
[1740072741875,3.66185,2730.9,2730.3,3.69911605]
[1740072742100,3.66185,2730.9,2730.3,3.66249]
[1740072742283,0.82,2731.1,2730.6,3.6621]
[1740072742484,0.7762,2731.5,2730.7,0.7994]
[1740072742767,0.7762,2731.5,2730.8,3.66185]
[1740072743082,3.66112,2731.4,2730.7,4.46146]
[1740072743282,3.66146,2731.2,2730.7,5.34697022]
[1740072744078,3.66146,2731.2,2730.7,1.68491022]
[1740072744870,3.66146,2731.2,2730.7,5.34690022]
[1740072745083,3.66126,2731.3,2730.8,3.66189]
[1740072745471,3.66126,2731.3,2730.7,5.34697022]
[1740072745679,3.66134,2731.3,2730.7,5.34697022]
[1740072745881,3.66134,2731.3,2730.8,0.97405924]
[1740072746405,3.66147,2731.2,2730.8,0.97405924]
[1740072748789,3.61147,2731.2,2730.8,0.97405924]
[1740072749605,3.66153,2731.1,2730.8,0.97405924]
[1740072750606,3.6614,2731.2,2730.8,0.97405924]
[1740072751273,7.32287,2731.2,2730.8,0.97405924]
[1740072751503,3.66123,2731.4,2730.9,0.54355092]
[1740072751704,3.66126,2731.3,2730.9,0.54355092]
[1740072752099,3.66126,2731.3,2730.9,4.20533092]
[1740072752276,3.6614,2731.2,2730.9,0.54355092]
[1740072753505,0.7762,2731.5,2730.9,0.54355092]
[1740072753813,3.66133,2731.3,2730.9,0.54355092]
[1740072754000,3.6614,2731.2,2730.9,0.54355092]
[1740072754504,3.6614,2731.2,2730.7,4.46139]
[1740072754712,3.66159,2731.1,2730.7,0.7994]
[1740072755076,3.66159,2731.1,2730.7,4.46143]
[1740072755305,3.6614,2731.2,2730.7,4.46138]
[1740072755507,3.66135,2731.3,2730.7,4.46138]
[1740072755832,3.6608,2731.7,2731.3,0.788]
[1740072756386,3.6605,2731.9,2731.3,0.82461047]
[1740072756605,3.66026,2732.1,2731.3,0.82461047]
[1740072756882,0.26962355,2732.2,2731.8,0.8064]
[1740072757190,3.92967355,2732.2,2731.8,1.2531]
[1740072757403,3.66005,2732.2,2731.8,0.8064]
[1740072757717,7.32019,2732.2,2731.8,0.8064]
[1740072757877,3.66005,2732.2,2731.8,0.8064]
[1740072758083,3.65978,2732.4,2731.8,5.1841433]
[1740072758283,3.66006,2732.2,2731.8,5.1841433]
[1740072758501,3.66006,2732.2,2731.8,1.5235633]
[1740072758702,3.66019,2732.1,2731.8,1.5235633]
[1740072759107,3.66005,2732.2,2731.8,1.5235633]
[1740072761421,3.66019,2732.1,2731.8,0.8064]
[1740072761580,0.03648828,2732.0,2731.6,1.0698]
[1740072761785,0.03648828,2732.0,2731.5,0.269]
[1740072761786,3.66072,2731.7,2731.5,0.269]
[1740072762026,3.66015,2732.2,2731.5,0.269]
[1740072762319,3.66019,2732.1,2731.6,3.66083]
[1740072763091,3.66032,2732.0,2731.5,3.92987]
[1740072763292,3.65992,2732.3,2731.8,0.8227]
[1740072763507,3.66011,2732.2,2731.8,0.8227]
[1740072764821,3.6602,2732.1,2731.8,0.8227]
[1740072765009,7.32051,2732.1,2731.8,0.8227]
[1740072765180,0.03648828,2732.5,2731.8,0.8227]
[1740072765387,3.66054,2731.9,2731.5,1.0917]
[1740072765818,3.66058,2731.9,2731.5,1.0917]
[1740072766019,3.6606,2731.8,2731.5,1.0917]
[1740072767289,3.6605,2731.9,2731.5,1.0917]
[1740072768425,3.66062,2731.8,2731.5,1.0917]
[1740072769548,3.66062,2731.8,2731.5,0.8227]
[1740072769758,3.66072,2731.7,2731.3,9.0299]
[1740072769927,3.66086,2731.6,2731.3,9.0299]
[1740072770852,3.66083,2731.7,2731.3,9.0299]
[1740072771151,3.66086,2731.6,2731.3,9.0299]
[1740072771818,3.66086,2731.6,2731.3,0.8059]
[1740072773828,3.66086,2731.6,2731.2,1.01162994]
[1740072774038,3.66086,2731.6,2731.2,4.67301994]
[1740072775073,0.811915,2731.6,2731.1,0.7852]
[1740072775238,3.66127,2731.3,2731.1,0.7852]
[1740072775422,3.6611,2731.5,2731.1,0.7852]
[1740072775633,0.7583,2732.0,2731.1,0.7852]
[1740072775818,3.66059,2731.8,2731.3,3.6612]
[1740072776025,3.66078,2731.7,2731.2,4.4342]
[1740072776231,3.66059,2731.8,2731.3,4.10462]
[1740072776477,3.66073,2731.7,2731.3,0.44342]
[1740072777244,3.66073,2731.7,2731.2,4.43422]
[1740072777439,3.66062,2731.8,2731.4,0.752]
[1740072777781,3.66032,2732.0,2731.4,4.41312]
[1740072778078,3.66045,2731.9,2731.5,3.92997]
[1740072778289,8.0747,2732.2,2731.6,3.66074]
[1740072778432,3.66027,2732.1,2731.6,3.66074]
[1740072778879,3.66027,2732.1,2731.5,3.92997]
[1740072778880,3.66052,2731.9,2731.5,0.269]
[1740072779385,3.66064,2731.8,2731.5,0.269]
[1740072780184,3.66046,2731.9,2731.5,0.269]
[1740072780785,3.66046,2731.9,2731.5,1.16513161]
[1740072781532,3.6605,2731.9,2731.5,1.16513161]
[1740072781734,7.32107,2731.9,2731.5,1.16513161]
[1740072781985,3.6605,2731.9,2731.5,1.16513161]
[1740072782590,7.32103,2731.9,2731.5,0.9861046]
[1740072782729,7.32104,2731.9,2731.5,0.9861046]
[1740072782931,3.6605,2731.9,2731.5,0.9861046]
[1740072783768,3.66054,2731.9,2731.5,0.9861046]
[1740072784269,7.32108,2731.9,2731.5,0.9861046]
[1740072784445,3.66054,2731.9,2731.5,0.9861046]
[1740072784771,3.66073,2731.7,2731.5,0.9861046]
[1740072785761,3.66053,2731.9,2731.5,0.9861046]
[1740072785934,3.6607,2731.8,2731.5,0.9861046]
[1740072786436,3.66059,2731.8,2731.5,0.9861046]
[1740072786974,3.66075,2731.7,2731.5,0.9861046]
[1740072787132,3.66022,2732.1,2731.5,5.18700406]
[1740072787358,0.7544,2732.2,2731.7,0.7698]
[1740072787563,0.7744,2732.4,2731.7,0.7698]
[1740072787781,3.66015,2732.2,2731.7,4.43051]
[1740072787994,3.66015,2732.2,2731.8,3.66058]
[1740072788562,3.66015,2732.2,2731.7,4.43051]
[1740072789564,0.7744,2732.4,2731.7,4.4305]
[1740072789766,3.66014,2732.2,2731.7,4.4305]
[1740072789965,3.66024,2732.1,2731.7,5.39591087]
[1740072790188,3.66024,2732.1,2731.7,1.73521087]
[1740072790704,3.66024,2732.1,2731.8,0.17923117]
[1740072790995,3.66018,2732.1,2731.8,0.17923117]
[1740072791375,3.66014,2732.2,2731.8,0.17923117]
[1740072791787,3.66026,2732.1,2731.8,0.17923117]
[1740072792892,3.66026,2732.1,2731.7,0.7698]
[1740072793575,7.32031,2732.2,2731.7,4.43046]
[1740072793767,3.66021,2732.1,2731.7,4.43046]
[1740072794680,3.66014,2732.2,2731.8,3.66052]
[1740072794867,3.66014,2732.2,2731.7,4.43046]
[1740072795281,3.66021,2732.1,2731.7,4.43046]
[1740072795569,3.66021,2732.1,2731.8,0.17906117]
[1740072795772,3.65999,2732.3,2731.8,3.83963117]
[1740072795973,3.66019,2732.1,2731.8,0.17906117]
[1740072796270,3.65992,2732.3,2731.8,0.64001329]
[1740072796470,0.7798,2732.6,2731.8,3.83964117]
[1740072796683,3.65983,2732.4,2731.9,4.46889]
[1740072797001,3.65983,2732.4,2732.0,3.66031]
[1740072797208,3.65968,2732.5,2732.0,3.6603]
[1740072797406,7.31944,2732.5,2732.0,3.6603]
[1740072797574,3.65987,2732.4,2731.9,4.64800117]
[1740072797772,3.0,2733.0,2731.9,4.64800117]
[1740072797773,3.65905,2733.0,2732.5,0.7596]
[1740072797975,0.1506189,2733.2,2732.6,0.269]
[1740072798202,3.65905,2733.0,2732.6,0.269]
[1740072798516,3.8093989,2733.2,2732.6,0.269]
[1740072799068,7.4681889,2733.2,2732.6,0.269]
[1740072799319,0.1506189,2733.2,2732.8,3.65918]
[1740072799490,0.1506189,2733.2,2732.9,3.65909]
[1740072799686,0.1506189,2733.2,2732.9,3.65904]
[1740072799891,0.1506189,2733.2,2733.0,4.48527]
[1740072800713,0.1506189,2733.2,2733.1,3.65884]
[1740072800899,0.1506189,2733.2,2733.1,4.45262904]
[1740072801475,0.1506189,2733.2,2733.1,0.79378904]
[1740072801679,3.65901,2733.0,2732.6,8.222]
[1740072801898,3.65901,2733.0,2732.8,0.269]
[1740072802609,7.31809,2733.0,2732.8,0.269]
[1740072802806,3.65911,2732.9,2732.8,0.269]
[1740072803014,3.65901,2733.0,2732.8,0.269]
[1740072803222,3.65909,2733.0,2732.8,0.269]
[1740072803721,3.65887,2733.1,2732.8,0.269]
[1740072803876,0.1506189,2733.2,2732.9,3.65899]
[1740072804203,0.1506189,2733.2,2733.0,0.7965]
[1740072804711,0.1506189,2733.2,2733.1,3.65884]
[1740072805323,0.1506189,2733.2,2733.0,0.7965]
[1740072805475,0.1506189,2733.2,2732.8,0.8491]
[1740072805672,3.65899,2733.0,2732.8,1.1181]
[1740072805874,7.31781,2733.1,2732.8,1.1181]
[1740072806108,3.65887,2733.1,2732.8,1.1181]
[1740072806311,7.31783,2733.1,2732.8,1.1181]
[1740072806512,3.65887,2733.1,2732.8,1.1181]
[1740072806692,7.3178,2733.1,2732.8,1.1181]
[1740072807316,3.65887,2733.1,2732.8,1.1181]
[1740072807691,3.8093989,2733.2,2732.8,1.1181]
[1740072807890,3.8093989,2733.2,2732.9,0.477743]
[1740072808109,0.1506189,2733.2,2732.9,0.477743]
[1740072808290,0.1506189,2733.2,2733.0,0.8118]
[1740072809216,0.1506189,2733.2,2733.0,4.4707]
[1740072812009,0.1506189,2733.2,2733.0,0.8118]
[1740072812214,0.1506189,2733.2,2733.1,0.447085]
[1740072812410,0.1506189,2733.2,2733.1,4.82932052]
[1740072813293,0.1506189,2733.2,2733.1,1.17048052]
[1740072814533,0.1506189,2733.2,2733.1,9.14995734]
[1740072814732,0.1506189,2733.2,2733.1,9.11337092]
[1740072816188,5.25,2734.2,2733.3,0.8312]
[1740072816499,5.25,2734.3,2733.8,0.768]
[1740072816839,3.65753,2734.1,2733.9,0.269]
[1740072817193,4.2072,2734.4,2733.9,0.269]
[1740072817418,3.65731,2734.3,2733.9,0.269]
[1740072817617,3.65745,2734.2,2733.9,0.269]
[1740072818014,4.20719,2734.4,2733.9,0.269]
[1740072818227,3.65726,2734.3,2733.9,0.269]
[1740072818544,4.20719,2734.4,2733.9,0.269]
[1740072818748,3.65731,2734.3,2733.9,0.269]
[1740072819050,0.55,2734.4,2734.3,3.65724]
[1740072819251,0.55,2734.4,2734.3,8.3174344]
[1740072819716,0.55,2734.4,2734.3,4.864684]
[1740072820112,0.7916,2735.6,2734.3,4.864684]
[1740072820345,3.6562,2735.1,2734.5,0.7614]
[1740072820549,0.8091,2735.0,2734.5,0.7614]
[1740072820751,3.65653,2734.9,2734.5,1.49675763]
[1740072820937,3.65658,2734.8,2734.5,1.49675763]
[1740072821149,3.65653,2734.9,2734.5,1.49675763]
[1740072822256,4.46542,2735.0,2734.5,1.49675763]
[1740072822422,3.65644,2734.9,2734.5,1.49675763]
[1740072822822,3.65638,2735.0,2734.5,2.01214839]
[1740072823749,3.65638,2735.0,2734.5,1.49675763]
[1740072824056,3.65648,2734.9,2734.5,1.49675763]
[1740072826077,7.31305,2734.9,2734.5,1.49675763]
[1740072826273,3.6566,2734.8,2734.5,1.49675763]
[1740072826591,3.65648,2734.9,2734.5,1.49675763]
[1740072826773,7.31299,2734.9,2734.5,1.49675763]
[1740072827466,7.31299,2734.9,2734.5,2.01214339]
[1740072827793,3.6566,2734.8,2734.5,2.01214339]
[1740072827985,3.6566,2734.8,2734.5,1.49675763]
[1740072829472,3.6566,2734.8,2734.6,0.268]
[1740072829668,3.6562,2735.1,2734.1,7.1102304]
[1740072829864,0.7504,2735.0,2734.2,1.0276]
[1740072830064,3.65681,2734.7,2734.2,4.68491]
[1740072830294,3.65681,2734.7,2734.3,0.834234]
[1740072831281,0.7504,2735.0,2734.4,0.74463761]
[1740072831459,3.65668,2734.8,2734.4,0.74463761]
[1740072831663,3.65668,2734.8,2734.5,0.7548]
[1740072831897,7.31334,2734.8,2734.5,0.7548]
[1740072832503,3.65642,2735.0,2734.5,0.7548]
[1740072832666,6.0111,2735.2,2734.5,0.7548]
[1740072832862,3.65646,2734.9,2734.5,0.7548]
[1740072833067,3.65646,2734.9,2734.5,4.9310717]
[1740072833817,3.65646,2734.9,2734.5,1.2741017]
[1740072834103,9.66721,2735.2,2734.6,3.65673]
[1740072834397,9.66721,2735.2,2734.7,3.65668]
[1740072834723,0.799,2735.2,2734.4,0.74463761]
[1740072835001,5.25,2735.5,2734.3,3.4527504]
[1740072835226,3.65541,2735.7,2735.1,0.7852]
[1740072835522,3.65564,2735.5,2735.1,1.0532]
[1740072836019,3.6557,2735.5,2735.1,1.0532]
[1740072836219,3.65562,2735.6,2735.1,1.0532]
[1740072836220,3.65584,2735.4,2735.1,1.0532]
[1740072836422,3.65557,2735.6,2735.1,1.0532]
[1740072836619,5.25,2735.8,2735.3,3.65582]
[1740072836784,3.65545,2735.7,2735.4,0.443482]
[1740072836986,3.65552,2735.6,2735.2,0.779]